bitfinex-derivatives/quotes_BTCF0:USTF0_20210105
["timestamp","ask_amount","ask_price","bid_price","bid_amount"]
[1609823817179,0.64828212,31057.0,31052.0,0.1041]
[1609823817378,5.0303,31083.0,31052.0,0.1041]
[1609823817379,0.95665347,31064.0,31052.0,0.1041]
[1609823818680,0.95665347,31064.0,31063.0,0.13632608]
[1609823818880,0.95665347,31064.0,31063.0,0.26014608]
[1609823819080,0.13632608,31077.0,31063.0,0.26014608]
[1609823819784,0.13632608,31077.0,31063.0,4.33844608]
[1609823819981,0.95683858,31088.0,31063.0,4.33844608]
[1609823820782,0.13632608,31082.0,31072.0,0.13632608]
[1609823821181,0.13632608,31082.0,31063.0,4.20212]
[1609823821581,0.95676004,31094.0,31063.0,4.20212]
[1609823822785,0.95676004,31094.0,31077.0,0.13632608]
[1609823822985,0.95676004,31094.0,31077.0,0.13587]
[1609823823385,0.95676004,31094.0,31077.0,0.79757]
[1609823823585,0.95676004,31094.0,31077.0,0.13587]
[1609823823787,0.95676004,31094.0,31080.0,4.3084]
[1609823824688,0.95676004,31094.0,31087.0,0.13632608]
[1609823824892,0.95676004,31094.0,31090.0,0.6577]
[1609823825290,0.70659085,31097.0,31090.0,0.6577]
[1609823825891,0.66219085,31097.0,31090.0,0.6577]
[1609823826090,0.54059085,31097.0,31090.0,0.6577]
[1609823826492,0.54059085,31097.0,31087.0,0.13632608]
[1609823826691,0.15449085,31097.0,31096.0,0.13632608]
[1609823826891,0.10589085,31097.0,31096.0,0.24555608]
[1609823827092,0.08169085,31097.0,31096.0,0.10923]
[1609823827291,0.04269085,31097.0,31096.0,0.10923]
[1609823828794,0.02879085,31097.0,31096.0,0.24555608]
[1609823828994,0.80061884,31101.0,31100.0,3.8573]
[1609823829194,5.1111,31157.0,31100.0,3.8573]
[1609823829195,1.3295907,31131.0,31100.0,3.8573]
[1609823830594,1.3295907,31131.0,31096.0,0.10923]
[1609823830794,1.3295907,31131.0,31130.0,0.13632608]
[1609823830994,1.3295907,31131.0,31130.0,0.88638608]
[1609823832001,1.1084907,31131.0,31130.0,0.88638608]
[1609823832601,0.68262816,31142.0,31130.0,0.24388608]
[1609823832799,0.68262816,31142.0,31130.0,0.10756]
[1609823833399,2.08541862,31166.0,31130.0,0.10756]
[1609823833400,0.13632608,31131.0,31130.0,0.10756]
[1609823833598,0.10966,31151.0,31130.0,0.10756]
[1609823834800,0.67488523,31175.0,31130.0,0.10756]
[1609823835404,0.13632608,31141.0,31136.0,0.13632608]
[1609823835800,0.10009,31159.0,31130.0,0.10756]
[1609823836199,0.10009,31159.0,31130.0,0.11586]
[1609823837401,0.13632608,31153.0,31143.0,0.13632608]
[1609823838203,0.13632608,31153.0,31130.0,0.11586]
[1609823838604,0.10009,31159.0,31130.0,0.11586]
[1609823839505,0.13632608,31132.0,31130.0,0.11586]
[1609823840104,0.14759,31141.0,31130.0,0.11586]
[1609823841109,0.10009,31159.0,31130.0,0.11586]
[1609823841308,0.2765,31173.0,31130.0,0.10392]
[1609823841510,0.13632608,31153.0,31143.0,0.6437]
[1609823842509,0.13632608,31153.0,31130.0,0.10392]
[1609823843410,0.13632608,31140.0,31130.0,0.10392]
[1609823845411,0.13632608,31135.0,31130.0,0.10392]
[1609823846209,0.13632608,31135.0,31096.0,0.10923]
[1609823846410,0.13632608,31135.0,31084.0,0.1295]
[1609823846610,0.13632608,31135.0,31095.0,4.8609]
[1609823846809,0.13632608,31135.0,31095.0,5.01518]
[1609823847409,0.14621,31138.0,31122.0,0.13632608]
[1609823848412,0.14621,31138.0,31115.0,4.93771]
[1609823849414,0.13632608,31122.0,31115.0,4.93771]
[1609823849813,0.15118,31129.0,31115.0,4.93771]
[1609823851214,0.14621,31138.0,31115.0,4.93771]
[1609823851416,0.13632608,31140.0,31135.0,0.13632608]
[1609823851816,0.2949,31146.0,31122.0,0.12931]
[1609823853420,0.13632608,31137.0,31134.0,0.13632608]
[1609823853619,0.13632608,31137.0,31122.0,0.12931]
[1609823855422,0.2949,31146.0,31130.0,0.13632608]
[1609823855623,0.2949,31146.0,31122.0,0.12931]
[1609823856426,0.2949,31146.0,31115.0,4.93771]
[1609823856926,0.2949,31146.0,31115.0,4.7944]
[1609823857525,0.13632608,31116.0,31115.0,4.7944]
[1609823857726,0.13632608,31116.0,31095.0,0.15428]
[1609823857928,0.13632608,31116.0,31098.0,3.9873]
[1609823858129,0.13632608,31116.0,31098.0,4.11843]
[1609823859628,0.11392,31124.0,31098.0,4.11843]
[1609823860030,0.11392,31124.0,31121.0,0.13632608]
[1609823862534,0.2949,31146.0,31121.0,0.13632608]
[1609823864038,0.2949,31146.0,31120.0,0.12883]
[1609823866036,0.13632608,31121.0,31120.0,0.12883]
[1609823866236,0.13632608,31121.0,31115.0,0.13632608]
[1609823866437,0.10674,31128.0,31115.0,0.13632608]
[1609823866738,0.10674,31128.0,31109.0,0.13908]
[1609823867036,0.10674,31128.0,31104.0,4.4713]
[1609823868037,0.13632608,31126.0,31116.0,0.13632608]
[1609823870139,0.13632608,31117.0,31116.0,0.13632608]
[1609823871044,0.13105,31119.0,31104.0,4.4713]
[1609823871943,0.10674,31128.0,31104.0,4.4713]
[1609823872142,0.56912242,31137.0,31125.0,0.13632608]
[1609823872341,0.68290898,31139.0,31125.0,0.13632608]
[1609823872342,0.57025932,31144.0,31125.0,0.13632608]
[1609823872743,0.48212308,31134.0,31125.0,0.13632608]
[1609823873442,0.10767,31147.0,31125.0,0.13632608]
[1609823874044,0.13632608,31136.0,31135.0,0.13632608]
[1609823875945,0.2737,31153.0,31135.0,0.13632608]
[1609823876145,0.2737,31153.0,31140.0,0.13632608]
[1609823876746,0.57092264,31157.0,31140.0,0.13632608]
[1609823877447,0.68518877,31159.0,31140.0,0.13632608]
[1609823877448,0.57589153,31158.0,31140.0,0.13632608]
[1609823878047,0.13632608,31150.0,31145.0,0.13632608]
[1609823878246,0.13632608,31150.0,31145.0,0.28259608]
[1609823880150,0.43122608,31146.0,31145.0,0.28259608]
[1609823880550,0.43122608,31146.0,31145.0,0.14627]
[1609823880750,0.2949,31146.0,31145.0,0.14627]
[1609823880949,0.2949,31146.0,31135.0,0.11861]
[1609823881250,0.2949,31146.0,31124.0,4.1185]
[1609823882250,0.2949,31146.0,31145.0,0.13632608]
[1609823883652,0.2949,31146.0,31141.0,0.1261]
[1609823884252,0.2949,31146.0,31145.0,0.13632608]
[1609823887052,0.2949,31146.0,31141.0,0.1261]
[1609823887653,0.2949,31146.0,31124.0,4.1185]
[1609823888152,0.2949,31146.0,31140.0,0.13632608]
[1609823888552,0.2949,31146.0,31133.0,0.11143]
[1609823888753,0.2949,31146.0,31121.0,0.15428]
[1609823888953,0.2949,31146.0,31118.0,5.0609]
[1609823888954,0.99233358,31146.0,31118.0,5.0609]
[1609823889355,0.58112269,31140.0,31118.0,5.0609]
[1609823889955,0.58122367,31137.0,31118.0,5.0609]
[1609823890155,0.58122367,31137.0,31121.0,0.13632608]
[1609823890355,0.58122367,31137.0,31118.0,5.0609]
[1609823890556,0.71253367,31137.0,31113.0,0.15326]
[1609823890756,4.2419,31135.0,31104.0,2.13688262]
[1609823891158,0.58067599,31134.0,31100.0,2.13731091]
[1609823891858,0.58067599,31134.0,31099.0,3.9623]
[1609823891859,0.58001739,31129.0,31099.0,3.9623]
[1609823892058,0.70708739,31129.0,31099.0,3.9623]
[1609823892260,0.70708739,31129.0,31113.0,0.13632608]
[1609823892458,0.57989043,31128.0,31100.0,0.1258]
[1609823892859,4.2403,31115.0,31100.0,0.1258]
[1609823893060,0.57989043,31128.0,31100.0,0.1258]
[1609823893061,0.15541,31118.0,31100.0,0.1258]
[1609823893259,3.7575,31102.0,31100.0,0.1258]
[1609823893460,3.87867,31102.0,31100.0,0.1258]
[1609823893660,3.87867,31102.0,31082.0,2.72007981]
[1609823893661,3.87867,31102.0,31082.0,2.13758981]
[1609823894260,0.13632608,31083.0,31082.0,2.13758981]
[1609823894962,4.5935,31087.0,31082.0,2.13758981]
[1609823895460,4.5935,31087.0,31082.0,0.13328981]
[1609823895661,0.11143,31095.0,31082.0,0.13328981]
[1609823895860,5.2804,31083.0,31082.0,0.13328981]
[1609823896262,5.41672608,31083.0,31070.0,2.4578175]
[1609823896463,0.13632608,31083.0,31070.0,2.4578175]
[1609823896662,0.13632608,31083.0,31070.0,2.3337475]
[1609823897763,3.97862608,31083.0,31070.0,2.3337475]
[1609823897963,3.8423,31083.0,31070.0,2.3337475]
[1609823898563,0.13632608,31071.0,31070.0,2.3337475]
[1609823898764,0.15542,31077.0,31070.0,2.3337475]
[1609823899968,0.15542,31077.0,31060.0,0.12909]
[1609823900565,0.13632608,31063.0,31060.0,0.12909]
[1609823901565,0.13632608,31063.0,31031.0,4.8337]
[1609823901767,4.8788,31066.0,31032.0,0.285]
[1609823902066,4.8788,31066.0,31032.0,0.42216]
[1609823902467,4.8788,31066.0,31036.0,0.13632608]
[1609823903166,0.14007,31069.0,31036.0,0.13632608]
[1609823903366,0.14007,31069.0,31032.0,0.13716]
[1609823903567,4.6121,31036.0,31032.0,0.13716]
[1609823903767,0.10041,31048.0,31032.0,0.13716]
[1609823903967,3.7494,31033.0,31032.0,0.13716]
[1609823904167,3.7494,31033.0,31015.0,2.3041589]
[1609823904368,3.7494,31033.0,31012.0,0.2878]
[1609823904566,3.7494,31033.0,31014.0,0.13632608]
[1609823904768,3.7494,31033.0,31014.0,0.27674608]
[1609823905168,3.7494,31033.0,31014.0,0.14042]
[1609823905367,0.09676,31041.0,31014.0,0.14042]
[1609823905970,3.8101,31015.0,31014.0,0.14042]
[1609823907770,3.8101,31015.0,31011.0,0.13632608]
[1609823908573,0.13632608,31012.0,31011.0,0.13632608]
[1609823909072,0.13225,31022.0,30988.0,0.2941]
[1609823909272,0.13225,31022.0,31002.0,5.0352]
[1609823909474,0.11437,31031.0,31002.0,5.18464]
[1609823909872,4.733,31033.0,31002.0,5.18464]
[1609823910674,0.13632608,31037.0,31030.0,0.13632608]
[1609823910874,5.1451,31049.0,31022.0,0.10472]
[1609823911273,4.8507,31049.0,31022.0,0.10472]
[1609823911475,0.48372658,31031.0,31022.0,0.10472]
[1609823911674,0.48372658,31031.0,31023.0,0.0965]
[1609823911875,0.48372658,31031.0,31022.0,0.10472]
[1609823912073,3.8123,31035.0,31022.0,0.10472]
[1609823912673,3.8123,31035.0,31030.0,0.13632608]
[1609823913075,3.8123,31035.0,31030.0,0.12624]
[1609823913676,0.11579,31057.0,31030.0,0.12624]
[1609823914675,0.11579,31057.0,31043.0,0.13632608]
[1609823914875,0.11579,31057.0,31043.0,0.28162608]
[1609823915277,0.11579,31057.0,31043.0,0.1453]
[1609823916178,3.7599,31067.0,31043.0,0.1453]
[1609823916577,3.7599,31067.0,31045.0,0.13632608]
[1609823916777,0.57202933,31071.0,31045.0,0.13632608]
[1609823918578,3.8364,31078.0,31061.0,0.13632608]
[1609823919081,0.01861192,31090.0,31061.0,0.13632608]
[1609823919287,4.51411192,31090.0,31061.0,0.13632608]
[1609823919679,0.48289735,31084.0,31061.0,0.13632608]
[1609823920082,0.63923735,31084.0,31061.0,0.13632608]
[1609823922585,0.13632608,31071.0,31069.0,0.13632608]
[1609823922785,0.63923735,31084.0,31069.0,0.13632608]
[1609823923386,0.15634,31084.0,31069.0,0.24669608]
[1609823923787,5.0391,31100.0,31069.0,0.24669608]
[1609823924587,5.0391,31100.0,31083.0,0.13632608]
[1609823924788,0.2896,31113.0,31083.0,0.13632608]
[1609823925387,0.2896,31113.0,31080.0,0.14077]
[1609823925587,0.40785,31113.0,31080.0,0.14077]
[1609823925987,5.3562,31096.0,31080.0,0.14077]
[1609823926188,5.4932,31096.0,31080.0,0.14077]
[1609823926389,4.4932,31096.0,31069.0,0.11037]
[1609823926987,4.4932,31096.0,31072.0,0.13632608]
[1609823928189,4.4932,31096.0,31069.0,0.11037]
[1609823928392,4.0617,31078.0,31069.0,0.11037]
[1609823928589,0.13608,31082.0,31062.0,0.14749]
[1609823928790,4.5367,31064.0,31037.0,4.7997]
[1609823928990,0.13632608,31054.0,31034.0,2.08869498]
[1609823929191,5.11723608,31054.0,31034.0,2.08869498]
[1609823929792,5.11723608,31054.0,31029.0,0.13632608]
[1609823930998,0.13632608,31031.0,31029.0,0.13632608]
[1609823931795,0.10781,31054.0,30997.0,2.18754206]
[1609823931998,3.6813,31031.0,30997.0,0.24534]
[1609823932195,0.10052,31043.0,30997.0,0.24534]
[1609823932398,0.10052,31043.0,31010.0,4.1949]
[1609823932595,0.10052,31043.0,31010.0,4.3191]
[1609823933098,0.13632608,31035.0,31028.0,0.13632608]
[1609823933499,0.48341874,31051.0,31028.0,0.13632608]
[1609823933698,0.48341874,31051.0,31028.0,0.29705608]
[1609823934697,0.10781,31054.0,31028.0,0.29705608]
[1609823934897,0.11925,31065.0,31028.0,0.29705608]
[1609823935098,0.13632608,31035.0,31028.0,0.29705608]
[1609823936100,0.11359,31050.0,31028.0,0.29705608]
[1609823936599,4.5243,31053.0,31028.0,0.29705608]
[1609823937099,0.13632608,31045.0,31034.0,0.13632608]
[1609823937500,0.13632608,31045.0,31028.0,0.16073]
[1609823938701,0.13632608,31045.0,31019.0,5.0978]
[1609823939101,0.13632608,31029.0,31022.0,0.13632608]
[1609823939902,0.14715,31047.0,31022.0,0.13632608]
[1609823940104,0.14715,31047.0,31022.0,0.28981608]
[1609823941103,0.13632608,31038.0,31022.0,0.15349]
[1609823943104,0.14383,31040.0,31023.0,4.5061]
[1609823943704,0.14715,31047.0,31023.0,4.5061]
[1609823943905,0.10547,31054.0,31023.0,4.5061]
[1609823944104,4.9114,31064.0,31023.0,4.5061]
[1609823944305,0.612,31053.0,31023.0,4.5061]
[1609823944505,0.0954,31064.0,31022.0,0.15349]
[1609823944705,4.125,31052.0,31022.0,0.15349]
[1609823945106,0.13632608,31023.0,31022.0,0.15349]
[1609823945307,0.13632608,31023.0,31019.0,0.13632608]
[1609823949416,0.4836174,31038.0,31019.0,0.13632608]
[1609823949615,0.4836174,31038.0,31019.0,0.23335608]
[1609823950417,0.4836174,31038.0,31019.0,0.90035608]
[1609823950817,0.13963,31040.0,31019.0,0.90035608]
[1609823951017,0.13632608,31034.0,31027.0,0.13632608]
[1609823951218,0.13963,31040.0,31019.0,0.76403]
[1609823951418,0.14671,31053.0,31019.0,0.09703]
[1609823951620,0.01884045,31063.0,31023.0,5.2556]
[1609823952319,0.01885323,31066.0,31023.0,5.2556]
[1609823952919,0.48339726,31052.0,31023.0,5.2556]
[1609823953120,0.13632608,31024.0,31023.0,0.13632608]
[1609823956427,0.13632608,31024.0,31019.0,0.09703]
[1609823956627,0.23342608,31024.0,31019.0,0.09703]
[1609823956826,0.13632608,31024.0,31011.0,0.2923]
[1609823957226,0.13632608,31012.0,31011.0,0.2923]
[1609823957829,0.23392608,31012.0,31011.0,0.3885]
[1609823958630,0.13632608,31012.0,31011.0,0.2923]
[1609823960033,0.13632608,31012.0,31011.0,0.3886]
[1609823960532,0.23342608,31012.0,31011.0,0.3886]
[1609823960734,0.13632608,31012.0,30997.0,0.14824]
[1609823961133,0.13632608,30998.0,30997.0,0.14824]
[1609823961334,0.13632608,30998.0,30993.0,2.12415868]
[1609823961834,0.0963,30997.0,30994.0,0.0978]
[1609823963536,0.0927,30997.0,30994.0,0.0978]
[1609823963938,0.57111682,31039.0,30991.0,4.3143]
[1609823964139,0.57111682,31039.0,30991.0,4.42773]
[1609823965038,0.0965,31014.0,30992.0,0.0968]
[1609823965238,0.0965,31014.0,31005.0,0.13632608]
[1609823965739,0.48388658,31021.0,31005.0,0.13632608]
[1609823965939,0.11725,31032.0,31002.0,0.13827]
[1609823966339,5.0306,31011.0,31002.0,0.13827]
[1609823966941,5.0306,31011.0,30991.0,0.11343]
[1609823967141,0.0976,31010.0,30991.0,0.11343]
[1609823967343,0.13632608,30992.0,30991.0,0.11343]
[1609823967541,0.13632608,30992.0,30988.0,0.13632608]
[1609823967944,0.39000608,30992.0,30988.0,0.13632608]
[1609823968342,0.39000608,30992.0,30989.0,0.0973]
[1609823968543,0.29260608,30992.0,30981.0,2.12159561]
[1609823968744,0.29260608,30992.0,30973.0,0.09926]
[1609823968745,3.7554,30989.0,30973.0,0.09926]
[1609823969343,0.13632608,30974.0,30973.0,0.09926]
[1609823969748,0.13632608,30974.0,30970.0,0.13632608]
[1609823969946,0.13632608,30974.0,30957.0,2.12041685]
[1609823970146,3.7748,30972.0,30957.0,2.12041685]
[1609823970347,0.14885,30973.0,30953.0,2.1209233]
[1609823970548,0.14885,30973.0,30954.0,4.6983]
[1609823970746,0.14885,30973.0,30954.0,4.81604]
[1609823970948,0.14885,30973.0,30954.0,0.11774]
[1609823971150,4.8023,30969.0,30954.0,0.11774]
[1609823971947,4.8023,30969.0,30953.0,0.0969]
[1609823972548,0.0981,30968.0,30954.0,0.0968]
[1609823973151,4.1567,30970.0,30929.0,2.11044754]
[1609823973348,0.13632608,30952.0,30951.0,0.13632608]
[1609823974152,0.13632608,30952.0,30951.0,0.0958]
[1609823974153,0.23222608,30952.0,30951.0,0.0958]
[1609823974353,0.23222608,30952.0,30937.0,3.81267]
[1609823974354,0.13632608,30952.0,30937.0,3.81267]
[1609823974755,0.14446,30957.0,30937.0,3.81267]
[1609823974954,0.14446,30957.0,30937.0,0.14417]
[1609823975354,0.13632608,30938.0,30937.0,0.14417]
[1609823975553,0.13632608,30938.0,30930.0,0.24548608]
[1609823975756,0.13632608,30938.0,30922.0,2.10228576]
[1609823975955,0.13632608,30938.0,30912.0,2.10316845]
[1609823976355,0.13632608,30938.0,30903.0,0.0955]
[1609823976755,0.13632608,30938.0,30900.0,0.3801]
[1609823977156,0.13632608,30938.0,30900.0,0.2834]
[1609823977356,5.0157,30940.0,30926.0,0.13632608]
[1609823977759,5.0157,30940.0,30922.0,0.1512]
[1609823977958,0.0973,30939.0,30922.0,0.1512]
[1609823978158,0.098,30938.0,30922.0,0.1512]
[1609823978365,5.0157,30940.0,30922.0,0.1512]
[1609823978962,0.13968,30945.0,30922.0,0.1512]
[1609823979160,0.13968,30945.0,30923.0,0.0979]
[1609823979360,0.097,30944.0,30924.0,0.0972]
[1609823979560,0.13968,30945.0,30922.0,0.1512]
[1609823979862,0.48504446,30947.0,30922.0,0.1512]
[1609823980061,0.48504446,30947.0,30932.0,4.6791]
[1609823980261,0.14446,30957.0,30932.0,4.7915]
[1609823980462,0.14885,30973.0,30932.0,4.7915]
[1609823980863,0.01777904,30993.0,30932.0,4.7915]
[1609823981261,0.161,31004.0,30932.0,4.7915]
[1609823981262,0.13632608,30962.0,30953.0,0.13632608]
[1609823981661,0.12484,30974.0,30953.0,0.13632608]
[1609823981861,0.12484,30974.0,30953.0,0.24125608]
[1609823982261,0.12484,30974.0,30953.0,5.17645608]
[1609823982663,0.48449527,30982.0,30953.0,5.17645608]
[1609823983264,5.1293,31000.0,30973.0,0.13632608]
[1609823985364,0.13632608,30974.0,30969.0,0.15295]
[1609823986365,0.13632608,30974.0,30953.0,0.10493]
[1609823986564,0.28258608,30974.0,30953.0,0.10493]
[1609823986765,0.28258608,30974.0,30953.0,0.0967]
[1609823986966,0.14626,30974.0,30953.0,0.0967]
[1609823987367,0.14626,30974.0,30954.0,0.0976]
[1609823987768,0.0981,30973.0,30954.0,0.0976]
[1609823988670,0.14626,30974.0,30944.0,0.13765]
[1609823988869,4.6649,30966.0,30944.0,0.13765]
[1609823989069,4.77477,30966.0,30944.0,0.13765]
[1609823989469,0.13632608,30945.0,30944.0,0.13765]
[1609823990370,0.13632608,30945.0,30932.0,0.1124]
[1609823990569,0.13632608,30945.0,30925.0,5.1059]
[1609823991570,0.13632608,30945.0,30926.0,0.13632608]
[1609823992574,0.62582233,30959.0,30926.0,0.13632608]
[1609823992973,0.14097,30959.0,30926.0,0.13632608]
[1609823993574,0.14097,30959.0,30925.0,5.1059]
[1609823993575,4.77477,30966.0,30925.0,5.2024]
[1609823993773,0.10987,30966.0,30925.0,0.0965]
[1609823993974,0.10987,30966.0,30933.0,3.7985]
[1609823994173,0.13632608,30964.0,30957.0,0.13632608]
[1609823994376,0.14626,30974.0,30957.0,0.13632608]
[1609823994575,0.2797,30982.0,30957.0,0.27912608]
[1609823994977,0.2797,30982.0,30957.0,0.1428]
[1609823996779,0.13632608,30963.0,30959.0,0.13632608]
[1609823996979,0.13632608,30963.0,30957.0,0.1428]
[1609823997777,0.13632608,30963.0,30944.0,5.2501]
[1609823998781,0.13632608,30951.0,30950.0,0.13632608]
[1609823998980,0.13632608,30951.0,30934.0,0.2706]
[1609824000685,0.12386,30959.0,30938.0,0.13632608]
[1609824002686,0.12386,30959.0,30944.0,0.13632608]
[1609824002886,0.12386,30959.0,30942.0,0.10517]
[1609824003289,4.8566,30953.0,30942.0,0.10517]
[1609824004289,4.8566,30953.0,30933.0,0.12364]
[1609824004488,4.8566,30953.0,30923.0,0.2985]
[1609824005291,0.12386,30959.0,30923.0,0.2985]
[1609824005490,0.11641,30966.0,30928.0,5.1961]
[1609824005692,0.14064,30974.0,30928.0,5.1961]
[1609824005891,4.4993,30978.0,30928.0,5.1961]
[1609824006092,0.48495034,30953.0,30928.0,5.1961]
[1609824006493,0.13691,30967.0,30928.0,5.1961]
[1609824006694,0.13691,30967.0,30953.0,0.13632608]
[1609824007093,0.13691,30967.0,30949.0,0.11204]
[1609824008694,0.13632608,30950.0,30949.0,0.11204]
[1609824009496,3.9726,30953.0,30926.0,4.7376]
[1609824010198,0.15894,30956.0,30924.0,0.0982]
[1609824010397,0.15894,30956.0,30929.0,4.8372]
[1609824010597,0.13691,30967.0,30930.0,0.0968]
[1609824010799,0.13691,30967.0,30949.0,0.13632608]
[1609824011198,0.48464702,30972.0,30953.0,5.2955]
[1609824011400,0.48464702,30972.0,30953.0,5.43776]
[1609824011801,0.5368837,30991.0,30953.0,0.14226]
[1609824011998,0.5368837,30991.0,30965.0,4.7749]
[1609824012198,0.5368837,30991.0,30965.0,4.90578]
[1609824013399,0.5368837,30991.0,30966.0,0.0976]
[1609824013599,0.2063837,30991.0,30966.0,0.0976]
[1609824014600,0.62578843,30993.0,30966.0,0.0976]
[1609824015005,0.62578843,30993.0,30965.0,0.13088]
[1609824015402,0.13632608,30995.0,30965.0,0.13088]
[1609824016704,0.13632608,30983.0,30969.0,0.13632608]
[1609824018406,0.12982,30990.0,30969.0,0.13632608]
[1609824018807,0.26614608,30990.0,30989.0,0.13632608]
[1609824019409,0.26614608,30990.0,30976.0,5.41852]
[1609824019807,0.26614608,30990.0,30976.0,0.10082]
[1609824020807,0.13632608,30977.0,30976.0,0.10082]
[1609824022211,0.13632608,30977.0,30965.0,0.13088]
[1609824022409,0.13632608,30977.0,30958.0,4.8977]
[1609824022810,0.13632608,30968.0,30963.0,0.13632608]
[1609824024313,4.15982608,30968.0,30946.0,0.14169]
[1609824024713,0.13632608,30947.0,30945.0,0.13632608]
[1609824026515,0.14979,30958.0,30945.0,0.13632608]
[1609824026714,0.14979,30958.0,30932.0,2.22975546]
[1609824026715,0.14979,30958.0,30957.0,0.13632608]
[1609824027515,0.13632608,30961.0,30957.0,0.13632608]
[1609824029017,0.13632608,30961.0,30949.0,0.10334]
[1609824030318,0.10352608,30961.0,30949.0,0.10334]
[1609824030718,0.10352608,30961.0,30957.0,0.13632608]
[1609824030918,0.1137,30968.0,30957.0,0.13632608]
[1609824031119,0.48453139,30979.0,30957.0,0.13632608]
[1609824031519,0.1472,30980.0,30957.0,0.13632608]
[1609824031719,4.0676,30992.0,30957.0,0.13632608]
[1609824031920,4.0676,30992.0,30957.0,0.26583608]
[1609824032620,4.0676,30992.0,30957.0,0.12951]
[1609824033120,4.0676,30992.0,30957.0,0.26583608]
[1609824033626,4.0676,30992.0,30957.0,0.12951]
[1609824036026,4.69049877,30992.0,30957.0,0.12951]
[1609824037229,0.13632608,30963.0,30954.0,0.13632608]
[1609824037432,3.7883,30979.0,30949.0,0.10334]
[1609824037629,3.7883,30979.0,30947.0,5.4085]
[1609824037829,3.94445,30979.0,30947.0,7.55110624]
[1609824038328,4.42899202,30979.0,30947.0,7.55110624]
[1609824038828,3.94445,30979.0,30947.0,7.55110624]
[1609824039229,3.94445,30979.0,30954.0,0.13632608]
[1609824039230,0.13632608,30966.0,30954.0,0.13632608]
[1609824039729,0.10432608,30966.0,30954.0,0.13632608]
[1609824043235,0.13632608,30955.0,30954.0,0.13632608]
[1609824043733,0.13632608,30955.0,30942.0,0.11527]
[1609824043941,0.13632608,30955.0,30937.0,2.14363294]
[1609824044143,4.4034,30950.0,30936.0,2.14438564]
[1609824044937,4.4034,30950.0,30927.0,2.14465373]
[1609824045140,4.4034,30950.0,30936.0,0.13632608]
[1609824045334,4.4034,30950.0,30935.0,0.12191]
[1609824046734,4.4034,30950.0,30925.0,2.14393318]
[1609824046939,4.4034,30950.0,30919.0,6.22958916]
[1609824047337,0.13632608,30925.0,30924.0,0.13632608]
[1609824048337,0.13607,30937.0,30924.0,0.13632608]
[1609824048536,0.48517947,30938.0,30924.0,0.26737608]
[1609824048736,0.12772,30955.0,30924.0,0.26737608]
[1609824049637,4.3882,30958.0,30924.0,0.26737608]
[1609824050938,0.48501601,30948.0,30924.0,0.26737608]
[1609824051340,0.48501601,30948.0,30932.0,0.13632608]
[1609824051641,0.11869,30949.0,30932.0,0.13632608]
[1609824053143,4.3882,30958.0,30932.0,0.13632608]
[1609824053345,0.13632608,30945.0,30942.0,0.13632608]
[1609824053746,0.6025,30944.0,30931.0,0.1482]
[1609824053946,5.0428,30942.0,30931.0,0.1482]
[1609824054850,5.0428,30942.0,30926.0,2.14099978]
[1609824055250,0.13632608,30927.0,30926.0,2.14099978]
[1609824056254,0.13632608,30927.0,30925.0,2.33698189]
[1609824056854,0.13632608,30927.0,30906.0,2.13795198]
[1609824057253,0.13632608,30907.0,30906.0,2.13795198]
[1609824057654,0.13632608,30907.0,30905.0,0.13632608]
[1609824057853,4.9463,30928.0,30905.0,0.13632608]
[1609824058055,4.9463,30928.0,30905.0,0.27256608]
[1609824059255,0.13632608,30917.0,30905.0,0.27256608]
[1609824061358,0.13632608,30913.0,30905.0,0.27256608]
[1609824061558,4.1401,30923.0,30905.0,0.13624]
[1609824063260,4.1401,30923.0,30906.0,0.13632608]
[1609824065263,0.13632608,30912.0,30906.0,0.13632608]
[1609824066563,0.7628,30910.0,30905.0,0.13849]
[1609824066766,0.13909,30925.0,30890.0,2.12690205]
[1609824066965,4.3448,30908.0,30890.0,2.22668205]
[1609824067165,0.11771,30917.0,30890.0,0.09978]
[1609824067364,0.13632608,30891.0,30890.0,0.09978]
[1609824068567,0.13632608,30891.0,30874.0,2.12676163]
[1609824069370,0.13632608,30891.0,30881.0,0.13632608]
[1609824069569,0.13632608,30891.0,30881.0,0.28724608]
[1609824070169,0.14417,30902.0,30881.0,0.28724608]
[1609824071170,0.15052,30909.0,30883.0,4.8079]
[1609824071373,0.50120992,30932.0,30883.0,4.8079]
[1609824071773,0.13632608,30913.0,30912.0,0.13632608]
[1609824072574,0.13632608,30913.0,30883.0,4.9043]
[1609824072872,0.13632608,30913.0,30883.0,4.8079]
[1609824073874,4.7087,30933.0,30883.0,4.8079]
[1609824074075,4.7087,30933.0,30883.0,4.9042]
[1609824075879,0.13632608,30917.0,30903.0,0.13632608]
[1609824076079,0.26394608,30917.0,30903.0,0.13632608]
[1609824077378,0.12762,30917.0,30903.0,0.13632608]
[1609824077979,0.26394608,30917.0,30916.0,0.13632608]
[1609824078178,0.26394608,30917.0,30906.0,0.11991]
[1609824079380,0.12762,30917.0,30906.0,0.11991]
[1609824079580,4.4589,30938.0,30906.0,0.11991]
[1609824079979,0.13632608,30921.0,30917.0,0.13632608]
[1609824080180,0.15402,30926.0,30917.0,0.13632608]
[1609824080581,0.15402,30926.0,30915.0,0.11684]
[1609824080991,0.15402,30926.0,30915.0,4.68024]
[1609824081199,0.1466,30933.0,30915.0,4.68024]
[1609824081391,0.0818,30933.0,30915.0,4.68024]
[1609824081986,0.13632608,30935.0,30931.0,0.13632608]
[1609824082780,0.51454078,30960.0,30931.0,0.13632608]
[1609824083181,0.51454078,30960.0,30931.0,0.23282608]
[1609824083583,0.51454078,30960.0,30941.0,5.2673]
[1609824083984,0.61741465,30961.0,30941.0,5.2673]
[1609824083985,0.43387115,30961.0,30959.0,0.13632608]
[1609824084184,0.61745109,30962.0,30959.0,0.13632608]
[1609824084383,0.48481365,30961.0,30959.0,0.13632608]
[1609824084784,0.48481365,30961.0,30945.0,0.10234]
[1609824084985,4.4963,30965.0,30945.0,0.10234]
[1609824085984,0.13632608,30959.0,30956.0,0.13632608]
[1609824086187,0.14512,30966.0,30956.0,0.13632608]
[1609824087186,0.14512,30966.0,30953.0,0.13327]
[1609824088388,0.13632608,30954.0,30953.0,0.26959608]